[Event "GER-ch Youth-U14 2022"]
[Site "Willingen"]
[Date "2022.06.06"]
[Round "3.7"]
[White "Huber, Benedikt"]
[Black "Klaska, Philipp Leon"]
[Result "0-1"]
[ECO "C02"]
[WhiteElo "2288"]
[BlackElo "1946"]
[Annotator "TA"]
[PlyCount "76"]
[EventDate "2022.06.05"]
[EventType "swiss"]
[EventRounds "9"]
[EventCountry "GER"]
[SourceTitle "playchess.com"]
[Source "ChessBase"]
[SourceQuality "1"]
[TimeControl "40/4500+30:900+30"]

{[%evp 11,76,5,21,-37,-29,-124,-122,-128,-123,-126,-130,-125,-111,-133,-133,-121,-128,-127,-128,-143,-145,-154,-159,-156,-158,-203,-173,-184,-187,-254,-252,-237,-214,-227,-247,-266,-256,-372,-276,-264,-216,-275,-283,-316,-319,-265,-220,-365,-238,-268,-263,-611,-387,-671,-669,-777,-710,-739,-644,-684,-638,-614,-605,-1321,-1320,-1493,-1329]} 1. e4 {[%emt 0:00:00]} e6 {[%emt 0:00:00]} 2. d4 {[%emt 0:00:00]} d5 {[%emt 0:00:00]} 3. e5 {[%emt 0:00:00]} c5 {[%emt 0:00:00]} 4. c3 {[%emt 0:00:00]} Nc6 {[%emt 0:00:00]} 5. Nf3 {[%emt 0:00:00]} Qb6 {[%emt 0:00:00]} 6. a3 {[%emt 0:00:00]} Nh6 {[%emt 0:00:00][%cal Bg8h6,Bh6f5,Bf5d4,Bd4e2][%mdl 32]} 7. Be2 {[%emt 0:00:00] 7.Bd3 is a critical line. C02: French: Advance Variation.} (7. b4 $11) 7... cxd4 $15 {[%emt 0:00:00]} 8. cxd4 {[%emt 0:02:37]} (8. b4 $11) 8... Nf5 $17 {[%emt 0:00:00]} 9. O-O {[%emt 0:01:55] Black is better.} Nfxd4 {[%emt 0:03:06] Black is more active.} 10. Nbd2 {[%emt 0:01:13]} Nxe2+ {[%emt 0:04:04]} 11. Qxe2 {[%emt 0:00:07] [#]} a5 $146 {[%emt 0:03:06][%cal Ba7a5,Ba5a4][%mdl 32]} ({Predecessor:} 11... Bd7 12. Nb1 Qa6 13. Qxa6 bxa6 14. b4 Rb8 15. Nbd2 a5 16. bxa5 f6 17. exf6 gxf6 {0-1 (38) Bacila,M (2029)-Hladecek,M (2408) ICCF email 2009}) 12. Nb1 {[%emt 0:04:14]} Qa6 {[%emt 0:07:15]} 13. Qd1 {[%emt 0:02:42]} Be7 {[%emt 0:02:47]} 14. Nc3 {[%emt 0:01:29]} O-O {[%emt 0:01:21]} 15. Be3 {[%emt 0:02:14]} a4 {[%emt 0:07:46]} 16. Rc1 {[%emt 0:02:35]} Bd7 {[%emt 0:00:55]} 17. Re1 {[%emt 0:08:59]} Rfc8 {[%emt 0:02:57]} 18. Qc2 {[%emt 0:14:00]} Na5 {[%emt 0:04:28]} 19. Bg5 {[%emt 0:05:25]} Bf8 {[%emt 0:01:00]} 20. Nd4 (20. Be3 $142) 20... Rc4 {[%emt 0:03:33]} 21. Rcd1 {[%emt 0:13:59]} Qb6 {[%emt 0:04:39]} 22. Be3 {[%emt 0:03:59]} Qc7 {[%emt 0:01:14]} 23. f4 {[%emt 0:04:15]} Bxa3 {[%emt 0:05:48]} 24. Qf2 {[%emt 0:06:43]} (24. bxa3 $142 Rxc3 25. Qb2) 24... Bc5 {[%emt 0:05:35]} 25. f5 {[%emt 0:01:30]} Bxd4 {[%emt 0:13:20]} ({Stronger than} 25... Qxe5 26. fxe6 fxe6 27. Nxe6 $17) 26. Bxd4 {[%emt 0:00:10]} Nb3 {[%emt 0:00:58]} 27. Bb6 {[%emt 0:04:50]} Qc6 {[%emt 0:01:34]} 28. f6 {[%emt 0:01:23]} g6 {[%emt 0:01:39]} 29. g3 {[%emt 0:02:32]} (29. Qe3 $142 Qc8 30. Nxd5 exd5 31. Rxd5) 29... Nc5 {[%emt 0:03:53]} 30. Bxc5 {[%emt 0:00:54]} Qxc5 {[%emt 0:00:18]} ({And not} 30... Rxc5 31. Qf4 Rc4 32. Ne4 (32. Qh6 $2 Qc5+ 33. Rd4 Qf8 $19) 32... Qb6+ 33. Kf1 $19) 31. Re3 $2 {[%emt 0:00:28]} (31. Qxc5 Rxc5 32. Rc1) 31... b5 {[%emt 0:03:41][%cal Bb7b5,Bb5b4][%mdl 32]} 32. Kg2 $2 {[%emt 0:01:22]} (32. Red3) 32... a3 $19 {[%emt 0:01:53] [#] aiming for ...d4. Black is clearly winning.} 33. Re2 {[%emt 0:01:16]} Qxf2+ {[%emt 0:02:10]} 34. Rxf2 {[%emt 0:00:02]} b4 {[%emt 0:00:43]} 35. Ne2 {[%emt 0:00:44]} a2 {[%emt 0:01:31]} 36. Ra1 {[%emt 0:00:21]} b3 {[%emt 0:00:29]} 37. Nc3 {[%emt 0:00:09]} d4 {[%emt 0:00:10]} 38. Ne4 {[%emt 0:00:20]} Bc6 {[%emt 0:00:16] White got outplayed after the opening.  Weighted Error Value: White=0.68/Black=0.25 (precise)} 0-1

[Event "GER-ch Youth-U14 2022"]
[Site "Willingen"]
[Date "2022.06.06"]
[Round "3.8"]
[White "Haubold, Sebastian Marcel"]
[Black "Braeutigam, Alexander"]
[Result "1-0"]
[ECO "B95"]
[WhiteElo "1869"]
[BlackElo "1749"]
[Annotator "NA RC COMBH"]
[PlyCount "63"]
[EventDate "2022.06.05"]
[EventType "swiss"]
[EventRounds "9"]
[EventCountry "GER"]
[SourceTitle "playchess.com"]
[Source "ChessBase"]
[SourceQuality "1"]
[TimeControl "40/4500+30:900+30"]

1. e4 {[%emt 0:00:00]} c5 {[%emt 0:00:00]} 2. Nf3 {[%emt 0:00:00]} d6 {[%emt 0:00:00]} 3. d4 {[%emt 0:00:00]} cxd4 {[%emt 0:00:00]} 4. Nxd4 {[%emt 0:00:00]} Nf6 {[%emt 0:00:00]} 5. Nc3 {[%emt 0:00:00]} a6 {[%emt 0:00:00]} 6. Bg5 {[%emt 0:00:00]} e6 {[%emt 0:00:00]} 7. Qf3 {[%emt 0:00:00]} Be7 {[%emt 0:00:00]} 8. O-O-O {[%emt 0:00:00]} Nbd7 {[%emt 0:00:00]} 9. Bxf6 {[%emt 0:07:12]} (9. a3 $11) 9... Bxf6 {[%emt 0:00:00]} 10. Qg3 {[%emt 0:02:45]} Qc7 {[%emt 0:00:00]} 11. f4 {[%emt 0:06:48]} b5 {[%emt 0:00:00]} 12. Bxb5 {[%emt 0:05:56]} axb5 {[%emt 0:00:36]} 13. Ndxb5 {[%emt 0:00:08]} Qc6 {[%emt 0:01:37]} 14. Nxd6+ {[%emt 0:00:31]} Kf8 {[%emt 0:00:16]} 15. e5 {[%emt 0:00:35]} Be7 {[%emt 0:01:59]} 16. f5 {[%emt 0:07:38]} exf5 {[%emt 0:03:00]} 17. Nxf5 {[%emt 0:00:28]} Qg6 {[%emt 0:01:49]} 18. Qf3 {[%emt 0:02:47]} Rb8 {[%emt 0:09:05]} 19. Nxe7 {[%emt 0:04:26]} Qg5+ {[%emt 0:01:48]} 20. Kb1 {[%emt 0:00:27]} Qxe7 {[%emt 0:00:22]} 21. Rhe1 {[%emt 0:02:11]} Bb7 {[%emt 0:02:52]} 22. Qf4 {[%emt 0:04:49]} g5 {[%emt 0:01:43]} 23. Qd4 {[%emt 0:01:00]} Nc5 $18 {[%emt 0:01:33]} 24. Rf1 {[%emt 0:12:05]} Ne6 {[%emt 0:07:20]} 25. Qg4 {[%emt 0:03:59]} Kg7 {[%emt 0:02:56]} 26. Rf6 {[%emt 0:01:27]} Qc7 {[%emt 0:18:51]} 27. Rdf1 {[%emt 0:06:05]} Rhf8 {[%emt 0:02:16]} 28. Qh5 {[%emt 0:05:12]} Bxg2 {[%emt 0:15:00]} 29. R1f2 {[%emt 0:00:36]} Qb6 {[%emt 0:11:39]} 30. b3 {[%emt 0:02:33]} Qc6 {[%emt 0:01:07]} 31. Rxf7+ {[%emt 0:00:07]} Rxf7 {[%emt 0:00:26]} 32. Rxf7+ {[%emt 0:00:06]} 1-0

[Event "GER-ch Youth-U14 2022"]
[Site "Willingen"]
[Date "2022.06.06"]
[Round "3.9"]
[White "Kocharin, Timur"]
[Black "Torosyan, Bagrat"]
[Result "1/2-1/2"]
[ECO "E61"]
[WhiteElo "1867"]
[BlackElo "1683"]
[Annotator "NA RC COMBH"]
[PlyCount "72"]
[EventDate "2022.06.05"]
[EventType "swiss"]
[EventRounds "9"]
[EventCountry "GER"]
[SourceTitle "playchess.com"]
[Source "ChessBase"]
[SourceQuality "1"]
[TimeControl "40/4500+30:900+30"]

1. d4 {[%emt 0:00:00]} Nf6 {[%emt 0:00:00]} 2. c4 {[%emt 0:00:00]} g6 {[%emt 0:00:00]} 3. Nc3 {[%emt 0:00:00]} Bg7 {[%emt 0:00:00]} 4. Nf3 {[%emt 0:00:00]} O-O {[%emt 0:00:00]} 5. Bf4 {[%emt 0:00:00]} d6 {[%emt 0:00:00]} 6. e3 {[%emt 0:00:00]} Re8 {[%emt 0:00:00]} 7. Be2 {[%emt 0:00:00]} Nbd7 {[%emt 0:00:00]} 8. O-O {[%emt 0:00:00]} Nh5 {[%emt 0:00:00]} 9. Bg5 {[%emt 0:00:00]} h6 {[%emt 0:00:00]} 10. Bh4 {[%emt 0:00:00]} g5 {[%emt 0:00:00]} 11. Nd2 {[%emt 0:00:00]} gxh4 {[%emt 0:00:00]} 12. Bxh5 {[%emt 0:00:00]} c5 {[%emt 0:00:00]} 13. Nde4 $11 {[%emt 0:00:00]} ({Don't play} 13. Qg4 Nf6 14. Qxh4 cxd4 15. exd4 Qb6 $11) (13. Qf3 $14 {is superior.} Rf8 14. d5) 13... cxd4 $1 {[%emt 0:00:00]} 14. exd4 {[%emt 0:00:07]} Qa5 {[%emt 0:05:48]} 15. Re1 {[%emt 0:09:45]} Rf8 {[%emt 0:11:06] [#]} 16. Nd5 $1 {[%emt 0:20:06]} Qd8 {[%emt 0:05:07]} 17. Qf3 {[%emt 0:12:21]} Nb6 {[%emt 0:21:34]} 18. Nxd6 {[%emt 0:13:55]} exd6 {[%emt 0:10:10]} 19. Ne7+ {[%emt 0:00:06]} Kh8 {[%emt 0:11:24]} 20. Bxf7 {[%emt 0:00:16]} Bd7 {[%emt 0:03:22]} 21. c5 {[%emt 0:10:26]} dxc5 {[%emt 0:05:06]} 22. dxc5 {[%emt 0:01:09]} Na4 {[%emt 0:02:19]} 23. Rad1 {[%emt 0:06:14]} Qc7 {[%emt 0:06:05]} 24. Ng6+ {[%emt 0:01:40]} Kh7 {[%emt 0:00:06]} 25. Nxf8+ {[%emt 0:02:34]} Rxf8 {[%emt 0:01:18]} 26. Re7 {[%emt 0:01:50]} Nxc5 {[%emt 0:00:58]} 27. b4 {[%emt 0:01:29]} Qd8 {[%emt 0:01:30]} 28. Rexd7 {[%emt 0:02:38]} Nxd7 {[%emt 0:00:36]} 29. Qf5+ {[%emt 0:00:17]} Kh8 30. Rxd7 {[%emt 0:00:36]} Qc8 {[%emt 0:00:29]} 31. h3 {[%emt 0:00:44]} Qc1+ {[%emt 0:00:30]} 32. Kh2 {[%emt 0:00:02]} Qe1 {[%emt 0:00:19]} 33. Rd5 {[%emt 0:00:51]} Qe7 {[%emt 0:02:11]} 34. Rd7 {[%emt 0:00:32]} Qe1 {[%emt 0:00:17]} 35. Rd5 {[%emt 0:00:24]} Qe7 {[%emt 0:00:06]} 36. Rd7 {[%emt 0:00:06]} Qe1 {[%emt 0:00:05]} 1/2-1/2

[Event "GER-ch Youth-U14 2022"]
[Site "Willingen"]
[Date "2022.06.06"]
[Round "3.10"]
[White "Fruth, David"]
[Black "Krüger, Arthur"]
[Result "0-1"]
[ECO "C12"]
[WhiteElo "1648"]
[BlackElo "1988"]
[Annotator "TA"]
[PlyCount "60"]
[EventDate "2022.06.05"]
[EventType "swiss"]
[EventRounds "9"]
[EventCountry "GER"]
[SourceTitle "playchess.com"]
[Source "ChessBase"]
[SourceQuality "1"]
[TimeControl "40/4500+30:900+30"]

{[%evp 11,59,0,3,4,20,8,26,9,30,20,28,10,50,-30,2,-40,-32,-44,-39,-23,-39,-30,-33,-62,-29,-161,-46,-133,-150,-168,-166,-227,-230,-1106,-1093,-1054,-807,-735,-786,-1441,-1314,-1426,-1377,-1336,-1306,-1249,-1089,-29998,-29999,-29999]} 1. e4 {[%emt 0:00:00]} e6 {[%emt 0:00:00]} 2. d4 {[%emt 0:00:00]} d5 {[%emt 0:00:00]} 3. Nc3 {[%emt 0:00:00]} Nf6 {[%emt 0:00:00]} 4. Bg5 {[%emt 0:00:00]} Bb4 {[%emt 0:00:00]} 5. e5 {[%emt 0:00:00]} h6 {[%emt 0:00:00]} 6. Bc1 {[%emt 0:00:00]} Ne4 {[%emt 0:00:00]} 7. Qg4 {[%emt 0:00:00] C12: French: Classical System: McCutcheon Variation.} g6 {[%emt 0:00:00]} ({Don't do} 7... Nxc3 8. Qxg7 Kd7 9. Bd2 $16) 8. Nge2 {[%emt 0:00:00]} c5 {[%emt 0:00:00]} 9. a3 {[%emt 0:00:00] White has an edge.} Bxc3+ {[%emt 0:00:00]} 10. bxc3 {[%emt 0:00:00] White wants to play f3.} cxd4 {[%emt 0:00:00]} 11. cxd4 {[%emt 0:00:00] Black must now prevent f3.} Nc6 {[%emt 0:00:00][%cal Bb8c6,Bc6a5,Ba5c4,Bc4e3,Be3c2,Bc2a3][%mdl 32] [#] Hoping for ...Qa5+.} 12. Be3 $146 {[%emt 0:00:00]} (12. c3 $14) ({Predecessor:} 12. c3 Qa5 13. Be3 Ne7 14. Qh3 f6 15. f3 Ng5 16. Qg4 Nf7 17. exf6 e5 18. Qg3 {1-0 (67) Kasimdzhanov,R (2700)-Smerdon,D (2513) Tromsoe 2014}) 12... Qb6 {[%emt 0:02:53]} 13. c3 {[%emt 0:00:00]} (13. f3 h5 14. Qh3) 13... Qb2 {[%emt 0:05:35]} 14. Rc1 {[%emt 0:00:00]} Na5 $1 {[%emt 0:10:56]} ({Resist} 14... Qxa3 15. f3 Ng5 16. Qf4 $16 (16. h4 Nh7 $16)) 15. f3 {[%emt 0:00:00]} Nc4 {[%emt 0:02:22]} 16. fxe4 {[%emt 0:00:00]} Nxe3 {[%emt 0:01:08]} 17. Qf3 {[%emt 0:00:00]} Nc2+ {[%emt 0:04:41]} 18. Kd1 {[%emt 0:01:43]} (18. Kf2 $11 {and White has nothing to worry.}) 18... dxe4 {[%emt 0:02:28]} ({Black should play} 18... Nxa3 $19 {Threatens to win with ...Bd7.} 19. Ke1 dxe4 20. Qxe4 a5) 19. Qxe4 {[%emt 0:00:49]} (19. Qf4 $15 Nxa3 20. Ng3) 19... Nxa3 $17 {[%emt 0:00:29] Black is more active.} 20. Nf4 {[%emt 0:06:23]} Bd7 {[%emt 0:02:10][%cal Bc8d7,Bd7a4,Ba4c2][%mdl 32] And now ...Ba4+ would win.} 21. d5 {[%emt 0:02:19]} (21. Nd3 $142 Ba4+ 22. Ke1 Nc2+ 23. Kd2) 21... exd5 $40 {[%emt 0:04:34][%mdl 128] Black goes for the king.} 22. Nxd5 {[%emt 0:00:09]} (22. Qb4 Bg4+ 23. Be2 Bxe2+ 24. Nxe2 Qxb4 25. cxb4) 22... O-O-O {[%emt 0:00:25] Strongly threatening ...Bf5.} 23. Bd3 {[%emt 0:03:41]} Kb8 {[%emt 0:08:08]} 24. e6 {[%emt 0:21:28] [#]} Ba4+ $1 {[%emt 0:05:38][%mdl 512]} 25. Rc2 {[%emt 0:03:33]} (25. Qxa4 Rxd5) 25... Bxc2+ {[%emt 0:02:40]} 26. Ke1 {[%emt 0:00:57] [#]} Rxd5 $1 {[%emt 0:01:24]} 27. Qxd5 {[%emt 0:00:05]} Qxc3+ {[%emt 0:00:50]} 28. Kf2 {[%emt 0:01:48]} Qd2+ {[%emt 0:00:49]} 29. Kg1 {[%emt 0:00:04]} Qe1+ {[%emt 0:00:11]} 30. Bf1 {[%emt 0:00:04]} Qe3# {Weighted Error Value: White=0.91/Black=0.29 (precise)} 0-1

[Event "GER-ch Youth-U14 2022"]
[Site "Willingen"]
[Date "2022.06.06"]
[Round "3.11"]
[White "Sauer, Tim"]
[Black "Schwan, Aaron"]
[Result "1-0"]
[ECO "B41"]
[WhiteElo "1769"]
[BlackElo "1671"]
[Annotator "NA RC COMBH"]
[PlyCount "87"]
[EventDate "2022.06.05"]
[EventType "swiss"]
[EventRounds "9"]
[EventCountry "GER"]
[SourceTitle "playchess.com"]
[Source "ChessBase"]
[SourceQuality "1"]
[TimeControl "40/4500+30:900+30"]

1. e4 {[%emt 0:00:00]} c5 {[%emt 0:00:00]} 2. Nf3 {[%emt 0:00:00]} e6 {[%emt 0:00:00]} 3. d4 {[%emt 0:00:00]} cxd4 {[%emt 0:00:00]} 4. Nxd4 {[%emt 0:00:00]} a6 {[%emt 0:00:00]} 5. c4 {[%emt 0:00:00]} Qc7 {[%emt 0:00:00]} 6. Nc3 {[%emt 0:00:00]} Nf6 {[%emt 0:00:00]} 7. a3 {[%emt 0:00:00]} b6 {[%emt 0:00:00]} 8. Be3 {[%emt 0:00:00]} Bb7 {[%emt 0:00:00]} 9. f3 {[%emt 0:00:00]} d6 {[%emt 0:00:00]} 10. Be2 {[%emt 0:00:00]} Nbd7 {[%emt 0:00:00]} 11. O-O {[%emt 0:00:00]} Be7 {[%emt 0:00:00]} 12. Qd2 {[%emt 0:00:00]} O-O {[%emt 0:00:00]} 13. Rac1 {[%emt 0:00:00]} Rfe8 {[%emt 0:00:00]} 14. Rfd1 {[%emt 0:00:00]} Rac8 {[%emt 0:03:05]} 15. b4 {[%emt 0:00:00]} Qb8 {[%emt 0:04:46]} 16. Nb3 {[%emt 0:00:00]} Bd8 {[%emt 0:19:55]} 17. Bf4 {[%emt 0:00:00]} Ne5 {[%emt 0:04:16]} 18. Bxe5 {[%emt 0:01:53]} dxe5 {[%emt 0:00:03]} 19. c5 {[%emt 0:00:41]} Qa7 {[%emt 0:03:38]} 20. Kh1 {[%emt 0:03:23]} Nh5 {[%emt 0:10:06]} 21. Qd6 {[%emt 0:30:19]} Bc7 {[%emt 0:11:32]} 22. cxb6 {[%emt 0:01:09]} Qxb6 {[%emt 0:00:58]} 23. Qxb6 {[%emt 0:00:24]} Bxb6 {[%emt 0:00:01]} 24. Na4 {[%emt 0:00:28]} Be3 {[%emt 0:13:02]} 25. Rxc8 {[%emt 0:01:20]} Rxc8 {[%emt 0:01:12]} 26. Nac5 {[%emt 0:09:47]} Nf4 {[%emt 0:02:18]} 27. Bf1 {[%emt 0:02:28]} Ba8 {[%emt 0:05:55]} 28. Bxa6 {[%emt 0:01:33]} Rb8 {[%emt 0:01:05]} 29. g3 {[%emt 0:08:30]} Ng6 {[%emt 0:01:46]} 30. Nd7 {[%emt 0:02:59]} Re8 {[%emt 0:01:11]} 31. b5 {[%emt 0:01:40]} f5 {[%emt 0:00:31]} 32. Nbc5 {[%emt 0:09:00]} Nf8 {[%emt 0:01:28]} 33. Re1 {[%emt 0:08:12]} Nxd7 {[%emt 0:02:17]} 34. Nxd7 {[%emt 0:00:19]} Bd4 {[%emt 0:00:31]} 35. b6 {[%emt 0:04:07]} Bc6 {[%emt 0:01:03]} 36. Rc1 {[%emt 0:02:42]} Bxd7 {[%emt 0:00:14]} 37. Rc7 {[%emt 0:00:29]} Ba4 {[%emt 0:01:10]} 38. b7 {[%emt 0:00:31]} Ba7 {[%emt 0:00:30]} 39. exf5 {[%emt 0:00:43]} exf5 {[%emt 0:00:22]} 40. Rc8 {[%emt 0:00:38]} e4 {[%emt 0:01:04]} 41. fxe4 {[%emt 0:17:08]} fxe4 {[%emt 0:15:51]} 42. Bc4+ {[%emt 0:00:00]} Kh8 {[%emt 0:00:00]} 43. Bf7 {[%emt 0:00:00]} Bd1 {[%emt 0:00:00]} 44. Rxe8# 1-0

[Event "GER-ch Youth-U14 2022"]
[Site "Willingen"]
[Date "2022.06.06"]
[Round "3.12"]
[White "Jahnz, Laurin"]
[Black "Wunderlich, Elias"]
[Result "0-1"]
[ECO "C00"]
[WhiteElo "1681"]
[BlackElo "1619"]
[Annotator "NA RC COMBH"]
[PlyCount "60"]
[EventDate "2022.06.05"]
[EventType "swiss"]
[EventRounds "9"]
[EventCountry "GER"]
[SourceTitle "playchess.com"]
[Source "ChessBase"]
[SourceQuality "1"]
[TimeControl "40/4500+30:900+30"]

1. e4 {[%emt 0:00:00]} e6 {[%emt 0:00:00]} 2. d3 {[%emt 0:00:00]} d5 {[%emt 0:00:00]} 3. Nd2 {[%emt 0:00:00]} Nf6 {[%emt 0:00:00]} 4. Ngf3 {[%emt 0:00:00]} Nc6 {[%emt 0:00:00]} 5. g3 {[%emt 0:00:00]} dxe4 {[%emt 0:00:00]} 6. dxe4 {[%emt 0:00:00]} Bc5 {[%emt 0:00:00]} 7. Bg2 {[%emt 0:00:00]} e5 {[%emt 0:00:00]} 8. O-O {[%emt 0:00:00]} O-O {[%emt 0:00:00]} 9. c3 {[%emt 0:00:00]} a5 {[%emt 0:00:00]} 10. a4 {[%emt 0:00:00]} Qe7 {[%emt 0:00:00]} 11. Qe2 {[%emt 0:00:00]} Rd8 {[%emt 0:00:00]} 12. Nc4 {[%emt 0:00:00]} h6 {[%emt 0:00:00]} 13. Nh4 {[%emt 0:07:52]} b6 {[%emt 0:00:00]} 14. Nf5 {[%emt 0:26:42]} Qe8 {[%emt 0:00:00]} 15. Qf3 {[%emt 0:03:32]} Qe6 {[%emt 0:32:02]} 16. Nce3 {[%emt 0:05:24]} Ne7 {[%emt 0:00:47]} 17. Bh3 {[%emt 0:01:13]} Nxf5 {[%emt 0:07:53]} 18. Nxf5 {[%emt 0:11:06]} Qc6 {[%emt 0:00:28]} 19. Bg2 {[%emt 0:02:21]} Bb7 {[%emt 0:07:49]} 20. Re1 {[%emt 0:00:44]} Rd7 {[%emt 0:02:14]} 21. g4 {[%emt 0:02:47]} Rad8 {[%emt 0:03:15]} 22. h4 {[%emt 0:01:05]} Rd3 {[%emt 0:01:11]} 23. Be3 {[%emt 0:00:05]} Qe6 {[%emt 0:01:39]} 24. Qe2 {[%emt 0:05:02]} Bxe3 {[%emt 0:01:31]} 25. Nxe3 {[%emt 0:00:16]} Bxe4 {[%emt 0:05:31]} 26. Bxe4 {[%emt 0:00:29]} Nxe4 {[%emt 0:00:07]} 27. Nf5 {[%emt 0:00:06]} Nd2 {[%emt 0:00:19]} 28. Nd4 {[%emt 0:03:40]} R8xd4 {[%emt 0:07:02]} 29. cxd4 {[%emt 0:00:42]} Nf3+ {[%emt 0:00:10]} 30. Kf1 {[%emt 0:00:38]} Qxg4 {[%emt 0:00:12]} 0-1

[Event "GER-ch Youth-U14 2022"]
[Site "Willingen"]
[Date "2022.06.06"]
[Round "3.13"]
[White "Sommer, Justus"]
[Black "Deschler, Arne"]
[Result "1-0"]
[ECO "B13"]
[WhiteElo "1868"]
[BlackElo "1646"]
[Annotator "NA RC COMBH"]
[PlyCount "49"]
[EventDate "2022.06.05"]
[EventType "swiss"]
[EventRounds "9"]
[EventCountry "GER"]
[SourceTitle "playchess.com"]
[Source "ChessBase"]
[SourceQuality "1"]
[TimeControl "40/4500+30:900+30"]

1. e4 {[%emt 0:00:00]} c6 {[%emt 0:00:00]} 2. d4 {[%emt 0:00:00]} d5 {[%emt 0:00:00]} 3. exd5 {[%emt 0:00:00]} cxd5 {[%emt 0:00:00]} 4. c4 {[%emt 0:00:00]} Nf6 {[%emt 0:00:00]} 5. Nc3 {[%emt 0:00:00]} Bf5 {[%emt 0:00:00]} 6. Bg5 {[%emt 0:00:00]} dxc4 {[%emt 0:00:00]} 7. Bxc4 {[%emt 0:00:00]} e6 {[%emt 0:00:00]} 8. d5 {[%emt 0:00:00]} Qb6 {[%emt 0:00:00]} ({Better is} 8... Be7 $14) 9. Bxf6 {[%emt 0:05:58]} gxf6 {[%emt 0:00:00]} 10. Nge2 {[%emt 0:01:05]} Bc5 {[%emt 0:00:44]} 11. O-O {[%emt 0:01:12]} Nd7 {[%emt 0:11:41]} 12. Ng3 {[%emt 0:05:02]} Qxb2 {[%emt 0:08:20]} 13. Nxf5 {[%emt 0:06:46]} exf5 {[%emt 0:01:07]} 14. Qe1+ {[%emt 0:06:15]} Ne5 {[%emt 0:02:20]} {Much less strong is} 15. Rb1 $6 {[%emt 0:03:03]} Qc2 {[%emt 0:03:38]} (15... Qa3 $16) 16. Rc1 {[%emt 0:14:10]} Qb2 {[%emt 0:00:25]} 17. Bb3 $18 {[%emt 0:02:09]} Kd8 {[%emt 0:18:22]} 18. Na4 {[%emt 0:05:22]} Qd4 {[%emt 0:02:10]} 19. Nxc5 {[%emt 0:02:17]} Rg8 {[%emt 0:01:07]} 20. Qe3 {[%emt 0:03:50]} Qg4 {[%emt 0:00:53]} 21. Qg3 {[%emt 0:01:33]} Nf3+ {[%emt 0:04:33]} 22. gxf3 {[%emt 0:03:07]} Qxf3 {[%emt 0:00:04]} 23. Qxg8+ {[%emt 0:00:22]} Ke7 {[%emt 0:00:06]} 24. Rfe1+ {[%emt 0:01:29]} Kd6 {[%emt 0:00:06]} 25. Nxb7+ {[%emt 0:00:07]} 1-0

[Event "GER-ch Youth-U14 2022"]
[Site "Willingen"]
[Date "2022.06.06"]
[Round "3.14"]
[White "Chinguun Sundui"]
[Black "Linnemann, Caspar"]
[Result "1/2-1/2"]
[ECO "A43"]
[WhiteElo "1731"]
[BlackElo "1720"]
[Annotator "NA RC COMBH"]
[PlyCount "72"]
[EventDate "2022.06.05"]
[EventType "swiss"]
[EventRounds "9"]
[EventCountry "GER"]
[SourceTitle "playchess.com"]
[Source "ChessBase"]
[SourceQuality "1"]
[TimeControl "40/4500+30:900+30"]

1. d4 {[%emt 0:00:00]} Nf6 {[%emt 0:00:00]} 2. Nf3 {[%emt 0:00:00]} c5 {[%emt 0:00:00]} 3. d5 {[%emt 0:00:00]} d6 {[%emt 0:00:00]} 4. Nc3 {[%emt 0:00:00]} Nbd7 {[%emt 0:00:00]} 5. e4 {[%emt 0:00:00]} g6 {[%emt 0:00:00]} 6. Bb5 {[%emt 0:00:00]} a6 {[%emt 0:00:00]} 7. Bxd7+ {[%emt 0:00:00]} Nxd7 {[%emt 0:00:00]} 8. a4 {[%emt 0:00:00]} Bg7 {[%emt 0:00:00]} 9. O-O {[%emt 0:00:00]} O-O {[%emt 0:00:00]} 10. Bf4 {[%emt 0:00:00]} b6 {[%emt 0:03:01]} 11. Qe2 {[%emt 0:00:00]} f6 {[%emt 0:09:19]} 12. Qd2 {[%emt 0:01:33]} Ne5 {[%emt 0:09:07]} 13. Nxe5 {[%emt 0:05:58]} fxe5 {[%emt 0:01:53]} 14. Bh6 {[%emt 0:00:28]} Bd7 {[%emt 0:05:52]} 15. h4 {[%emt 0:01:41]} Qe8 {[%emt 0:06:03]} 16. Bxg7 {[%emt 0:08:22]} Kxg7 {[%emt 0:00:16]} 17. f4 {[%emt 0:02:28]} exf4 {[%emt 0:02:45]} 18. Rxf4 {[%emt 0:00:37]} Rxf4 {[%emt 0:00:35]} 19. Qxf4 {[%emt 0:00:08]} Qf7 {[%emt 0:02:49]} 20. Qg3 {[%emt 0:09:25]} Qf6 {[%emt 0:09:09]} 21. Rd1 {[%emt 0:20:24]} Rf8 {[%emt 0:04:11]} 22. b3 {[%emt 0:08:31]} h5 {[%emt 0:04:28]} 23. Re1 {[%emt 0:14:19]} Qd4+ 24. Re3 {[%emt 0:01:16]} Qf6 {[%emt 0:16:12]} 25. Rf3 {[%emt 0:04:20]} Qd4+ {[%emt 0:00:25]} 26. Re3 {[%emt 0:00:09]} Qf6 {[%emt 0:00:07]} 27. e5 {[%emt 0:01:30]} Qf1+ {[%emt 0:01:58]} 28. Kh2 {[%emt 0:00:04]} Qf4 {[%emt 0:01:28]} 29. e6 {[%emt 0:02:28]} Be8 {[%emt 0:01:39]} 30. Rf3 {[%emt 0:00:58]} Qxg3+ {[%emt 0:00:18]} 31. Kxg3 {[%emt 0:00:05]} Rxf3+ {[%emt 0:04:40]} 32. Kxf3 {[%emt 0:02:19]} g5 {[%emt 0:00:29]} 33. hxg5 {[%emt 0:00:30]} Bg6 {[%emt 0:00:18]} 34. Ne4 {[%emt 0:00:11]} Bf5 {[%emt 0:00:42]} 35. c3 Kg6 36. Nd2 Kxg5 1/2-1/2